[Event "November 21 Late 2023"]
[Site "https://www.chess.com"]
[Date "2023.11.21"]
[Round "2"]
[White "elmusmolamas"]
[Black "Tactrics"]
[Result "0-1"]
[Board "31"]
[TimeControl "180+1"]
[WhiteElo "2569"]
[BlackElo "2898"]
[WhiteClock "0:00:02"]
[BlackClock "0:00:54"]

1. e4 {[%clk 0:03:00]}  e6 {[%clk 0:02:59]} 2. d4 {[%clk 0:03:00]}  d5 {[%clk 0:03:00]} 3. Bd3 {[%clk 0:03:01]}  Nc6 {[%clk 0:03:00]} 4. c3 {[%clk 0:03:00]}  e5 {[%clk 0:03:00]} 5. Nf3 {[%clk 0:02:47]}  exd4 {[%clk 0:02:58]} 6. cxd4 {[%clk 0:02:47]}  Bb4+ {[%clk 0:02:58]} 7. Nc3 {[%clk 0:02:47]}  dxe4 {[%clk 0:02:56]} 8. Bxe4 {[%clk 0:02:46]}  Nf6 {[%clk 0:02:55]} 9. Bc2 {[%clk 0:02:42]}  O-O {[%clk 0:02:54]} 10. O-O {[%clk 0:02:42]}  Bg4 {[%clk 0:02:54]} 11. Be3 {[%clk 0:02:30]}  h6 {[%clk 0:02:49]} 12. h3 {[%clk 0:02:24]}  Bh5 {[%clk 0:02:48]} 13. a3 {[%clk 0:01:56]}  Bd6 {[%clk 0:02:44]} 14. Nb5 {[%clk 0:01:45]}  Be7 {[%clk 0:02:41]} 15. Bf4 {[%clk 0:01:41]}  Nd5 {[%clk 0:02:40]} 16. Be3 {[%clk 0:01:26]}  Bf6 {[%clk 0:02:36]} 17. Nc3 {[%clk 0:01:19]}  Re8 {[%clk 0:02:23]} 18. Re1 {[%clk 0:01:18]}  Nb6 {[%clk 0:02:17]} 19. g4 {[%clk 0:01:11]}  Bg6 {[%clk 0:02:17]} 20. Bxg6 {[%clk 0:01:12]}  fxg6 {[%clk 0:02:18]} 21. Qb3+ {[%clk 0:01:11]}  Kh7 {[%clk 0:02:16]} 22. Rad1 {[%clk 0:01:12]}  Na5 {[%clk 0:02:09]} 23. Qc2 {[%clk 0:01:10]}  Nd5 {[%clk 0:02:05]} 24. Bc1 {[%clk 0:00:52]}  Nxc3 {[%clk 0:01:55]} 25. bxc3 {[%clk 0:00:51]}  Qd5 {[%clk 0:01:53]} 26. Qd3 {[%clk 0:00:41]}  Nc4 {[%clk 0:01:49]} 27. h4 {[%clk 0:00:31]}  Kg8 {[%clk 0:01:39]} 28. Kg2 {[%clk 0:00:24]}  Bxh4 {[%clk 0:01:31]} 29. Qxg6 {[%clk 0:00:24]}  Rf8 {[%clk 0:01:26]} 30. Qe6+ {[%clk 0:00:19]}  Qxe6 {[%clk 0:01:21]} 31. Rxe6 {[%clk 0:00:20]}  Bf6 {[%clk 0:01:20]} 32. g5 {[%clk 0:00:17]}  hxg5 {[%clk 0:01:20]} 33. Bxg5 {[%clk 0:00:18]}  Rae8 {[%clk 0:01:15]} 34. Rde1 {[%clk 0:00:17]}  Rxe6 {[%clk 0:01:14]} 35. Rxe6 {[%clk 0:00:18]}  Kf7 {[%clk 0:01:15]} 36. Re2 {[%clk 0:00:17]}  Re8 {[%clk 0:01:13]} 37. Rxe8 {[%clk 0:00:17]}  Kxe8 {[%clk 0:01:14]} 38. Bxf6 {[%clk 0:00:18]}  gxf6 {[%clk 0:01:14]} 39. Kf1 {[%clk 0:00:18]}  Nxa3 {[%clk 0:01:14]} 40. Ke2 {[%clk 0:00:18]}  Nc4 {[%clk 0:01:13]} 41. Kd3 {[%clk 0:00:19]}  b5 {[%clk 0:01:13]} 42. Nh4 {[%clk 0:00:16]}  Ke7 {[%clk 0:01:11]} 43. Nf5+ {[%clk 0:00:17]}  Ke6 {[%clk 0:01:12]} 44. Ng7+ {[%clk 0:00:17]}  Kd7 {[%clk 0:01:10]} 45. Nh5 {[%clk 0:00:17]}  Ke7 {[%clk 0:01:08]} 46. Nf4 {[%clk 0:00:17]}  c6 {[%clk 0:01:08]} 47. d5 {[%clk 0:00:17]}  c5 {[%clk 0:01:09]} 48. Ke4 {[%clk 0:00:15]}  a5 {[%clk 0:01:06]} 49. Kf5 {[%clk 0:00:08]}  a4 {[%clk 0:01:05]} 50. Nd3 {[%clk 0:00:08]}  Kd6 {[%clk 0:01:01]} 51. Kxf6 {[%clk 0:00:07]}  a3 {[%clk 0:00:58]} 52. Nc1 {[%clk 0:00:06]}  Kxd5 {[%clk 0:00:54]} 53. f4 {[%clk 0:00:07]}  Ne3 {[%clk 0:00:55]} 54. Kg5 {[%clk 0:00:05]}  Kc4 {[%clk 0:00:54]} 55. f5 {[%clk 0:00:04]}  Nxf5 {[%clk 0:00:53]} 56. Kxf5 {[%clk 0:00:02]}  Kxc3 {[%clk 0:00:54]} 0-1

[Event "November 21 Late 2023"]
[Site "https://www.chess.com"]
[Date "2023.11.21"]
[Round "2"]
[White "Kamsky, Gata"]
[Black "Liang, Justin"]
[Result "1-0"]
[Board "32"]
[TimeControl "180+1"]
[WhiteFideId "2000024"]
[BlackFideId "2099942"]
[WhiteElo "2660"]
[BlackElo "2565"]
[WhiteTeam "USA"]
[BlackTeam "USA"]
[WhiteClock "0:00:52"]
[BlackClock "0:00:00"]

1. d4 {[%clk 0:03:00]}  Nf6 {[%clk 0:02:56]} 2. Nf3 {[%clk 0:02:50]}  e6 {[%clk 0:02:49]} 3. Bf4 {[%clk 0:02:47]}  c5 {[%clk 0:02:47]} 4. e3 {[%clk 0:02:46]}  b6 {[%clk 0:02:39]} 5. Nbd2 {[%clk 0:02:43]}  Bb7 {[%clk 0:02:38]} 6. a4 {[%clk 0:02:42]}  cxd4 {[%clk 0:02:34]} 7. exd4 {[%clk 0:02:41]}  a6 {[%clk 0:02:34]} 8. h3 {[%clk 0:02:40]}  d6 {[%clk 0:02:34]} 9. Bd3 {[%clk 0:02:39]}  Be7 {[%clk 0:02:34]} 10. O-O {[%clk 0:02:39]}  O-O {[%clk 0:02:34]} 11. Re1 {[%clk 0:02:39]}  Nbd7 {[%clk 0:02:33]} 12. Bh2 {[%clk 0:02:39]}  Re8 {[%clk 0:02:33]} 13. a5 {[%clk 0:02:39]}  b5 {[%clk 0:02:25]} 14. c4 {[%clk 0:02:39]}  bxc4 {[%clk 0:02:11]} 15. Nxc4 {[%clk 0:02:39]}  Nf8 {[%clk 0:02:04]} 16. Nb6 {[%clk 0:02:35]}  Ra7 {[%clk 0:01:41]} 17. Nd2 {[%clk 0:02:33]}  Nd5 {[%clk 0:01:33]} 18. Ndc4 {[%clk 0:02:32]}  Bc6 {[%clk 0:01:11]} 19. Nxd5 {[%clk 0:02:29]}  Bxd5 {[%clk 0:01:07]} 20. Nb6 {[%clk 0:02:29]}  Bc6 {[%clk 0:01:05]} 21. Rc1 {[%clk 0:02:26]}  Bb7 {[%clk 0:00:51]} 22. Qa4 {[%clk 0:02:22]}  Bf6 {[%clk 0:00:50]} 23. Rc3 {[%clk 0:01:42]}  e5 {[%clk 0:00:30]} 24. d5 {[%clk 0:01:39]}  e4 {[%clk 0:00:29]} 25. Rb3 {[%clk 0:01:25]}  e3 {[%clk 0:00:08]} 26. fxe3 {[%clk 0:01:16]}  Bh4 {[%clk 0:00:05]} 27. Re2 {[%clk 0:01:14]}  Bg5 {[%clk 0:00:05]} 28. Bf4 {[%clk 0:01:07]}  Bf6 {[%clk 0:00:05]} 29. Bxd6 {[%clk 0:01:02]}  Ng6 {[%clk 0:00:02]} 30. Bc7 {[%clk 0:00:59]}  Qe7 {[%clk 0:00:02]} 31. d6 {[%clk 0:00:59]}  Qe6 {[%clk 0:00:01]} 32. d7 {[%clk 0:00:55]}  Rf8 {[%clk 0:00:00]} 33. Qc4 {[%clk 0:00:52]} 1-0

[Event "November 21 Late 2023"]
[Site "https://www.chess.com"]
[Date "2023.11.21"]
[Round "2"]
[White "Deng, Henry"]
[Black "Remizov, Yaroslav"]
[Result "1/2-1/2"]
[Board "35"]
[TimeControl "180+1"]
[WhiteFideId "30965454"]
[BlackFideId "34134015"]
[WhiteElo "2559"]
[BlackElo "2420"]
[WhiteTeam "USA"]
[BlackTeam "RUS"]
[WhiteClock "0:00:29"]
[BlackClock "0:00:18"]

1. e4 {[%clk 0:03:00]}  c6 {[%clk 0:03:00]} 2. d4 {[%clk 0:03:00]}  d5 {[%clk 0:03:01]} 3. Nd2 {[%clk 0:03:00]}  dxe4 {[%clk 0:03:01]} 4. Nxe4 {[%clk 0:03:01]}  Nf6 {[%clk 0:03:02]} 5. Nxf6+ {[%clk 0:03:02]}  exf6 {[%clk 0:03:03]} 6. c3 {[%clk 0:03:02]}  Bd6 {[%clk 0:03:03]} 7. Bd3 {[%clk 0:03:03]}  O-O {[%clk 0:03:04]} 8. Qc2 {[%clk 0:03:04]}  Re8+ {[%clk 0:03:05]} 9. Ne2 {[%clk 0:03:04]}  h5 {[%clk 0:03:05]} 10. O-O {[%clk 0:03:03]}  Qc7 {[%clk 0:03:05]} 11. h3 {[%clk 0:03:01]}  Nd7 {[%clk 0:03:05]} 12. Bd2 {[%clk 0:03:01]}  Nf8 {[%clk 0:03:04]} 13. Rae1 {[%clk 0:03:01]}  Be6 {[%clk 0:03:02]} 14. c4 {[%clk 0:02:56]}  Rad8 {[%clk 0:03:02]} 15. f4 {[%clk 0:02:56]}  Bc8 {[%clk 0:02:35]} 16. f5 {[%clk 0:02:46]}  c5 {[%clk 0:02:29]} 17. d5 {[%clk 0:02:44]}  Nd7 {[%clk 0:02:29]} 18. b3 {[%clk 0:02:26]}  Ne5 {[%clk 0:02:22]} 19. Be4 {[%clk 0:02:25]}  b5 {[%clk 0:01:53]} 20. cxb5 {[%clk 0:01:59]}  a6 {[%clk 0:01:53]} 21. Nf4 {[%clk 0:01:50]}  h4 {[%clk 0:01:43]} 22. Bc1 {[%clk 0:01:20]}  axb5 {[%clk 0:01:41]} 23. Qf2 {[%clk 0:01:20]}  c4 {[%clk 0:01:27]} 24. Qxh4 {[%clk 0:01:17]}  Nd3 {[%clk 0:00:36]} 25. Bxd3 {[%clk 0:00:39]}  cxd3 {[%clk 0:00:29]} 26. Nxd3 {[%clk 0:00:34]}  Rxe1 {[%clk 0:00:26]} 27. Qxe1 {[%clk 0:00:32]}  Qc2 {[%clk 0:00:21]} 28. Qd2 {[%clk 0:00:31]}  Qc7 {[%clk 0:00:17]} 29. Kh1 {[%clk 0:00:31]}  Bb7 {[%clk 0:00:16]} 30. Bb2 {[%clk 0:00:28]}  Bxd5 {[%clk 0:00:16]} 31. Nf4 {[%clk 0:00:26]}  Be4 {[%clk 0:00:06]} 32. Qe2 {[%clk 0:00:24]}  Bxf5 {[%clk 0:00:04]} 33. Nd5 {[%clk 0:00:25]}  Qc2 {[%clk 0:00:03]} 34. Qxc2 {[%clk 0:00:20]}  Bxc2 {[%clk 0:00:04]} 35. Rc1 {[%clk 0:00:20]}  Be4 {[%clk 0:00:04]} 36. Nc3 {[%clk 0:00:20]}  Bc6 {[%clk 0:00:03]} 37. Ne2 {[%clk 0:00:20]}  Bb7 {[%clk 0:00:03]} 38. Nd4 {[%clk 0:00:21]}  Be5 {[%clk 0:00:03]} 39. Rd1 {[%clk 0:00:19]}  b4 {[%clk 0:00:04]} 40. Rd2 {[%clk 0:00:19]}  Ra8 {[%clk 0:00:03]} 41. Nf3 {[%clk 0:00:18]}  Rxa2 {[%clk 0:00:01]} 42. Nxe5 {[%clk 0:00:18]}  fxe5 {[%clk 0:00:01]} 43. Bc3 {[%clk 0:00:17]}  Ra4 {[%clk 0:00:01]} 44. Bxe5 {[%clk 0:00:17]}  Ra3 {[%clk 0:00:01]} 45. Rd8+ {[%clk 0:00:17]}  Kh7 {[%clk 0:00:02]} 46. Rd7 {[%clk 0:00:17]}  Be4 {[%clk 0:00:02]} 47. Rxf7 {[%clk 0:00:18]}  Rxb3 {[%clk 0:00:02]} 48. Rxg7+ {[%clk 0:00:18]}  Kh6 {[%clk 0:00:03]} 49. Rg3 {[%clk 0:00:19]}  Rxg3 {[%clk 0:00:03]} 50. Bxg3 {[%clk 0:00:20]}  b3 {[%clk 0:00:03]} 51. Be5 {[%clk 0:00:20]}  Kg5 {[%clk 0:00:04]} 52. Kg1 {[%clk 0:00:21]}  Kf5 {[%clk 0:00:05]} 53. Bb2 {[%clk 0:00:21]}  Ke6 {[%clk 0:00:05]} 54. Kf2 {[%clk 0:00:22]}  Bg6 {[%clk 0:00:05]} 55. g4 {[%clk 0:00:22]}  Kf7 {[%clk 0:00:06]} 56. Kg3 {[%clk 0:00:23]}  Kg8 {[%clk 0:00:06]} 57. Kf4 {[%clk 0:00:23]}  Kh7 {[%clk 0:00:07]} 58. h4 {[%clk 0:00:24]}  Bf7 {[%clk 0:00:08]} 59. Ke5 {[%clk 0:00:24]}  Be8 {[%clk 0:00:08]} 60. Kf6 {[%clk 0:00:25]}  Bd7 {[%clk 0:00:09]} 61. g5 {[%clk 0:00:25]}  Be8 {[%clk 0:00:09]} 62. Bc3 {[%clk 0:00:25]}  Bh5 {[%clk 0:00:10]} 63. Bb2 {[%clk 0:00:25]}  Bg6 {[%clk 0:00:10]} 64. Ke5 {[%clk 0:00:25]}  Bh5 {[%clk 0:00:11]} 65. Kd4 {[%clk 0:00:25]}  Bg6 {[%clk 0:00:12]} 66. Kc4 {[%clk 0:00:25]}  Bf7+ {[%clk 0:00:12]} 67. Kb4 {[%clk 0:00:26]}  Kg6 {[%clk 0:00:13]} 68. Kc3 {[%clk 0:00:24]}  Kh5 {[%clk 0:00:13]} 69. Kd2 {[%clk 0:00:24]}  Kxh4 {[%clk 0:00:13]} 70. Bf6 {[%clk 0:00:24]}  Bg6 {[%clk 0:00:14]} 71. Kc1 {[%clk 0:00:24]}  Kg4 {[%clk 0:00:13]} 72. Kb2 {[%clk 0:00:24]}  Bf7 {[%clk 0:00:14]} 73. Be7 {[%clk 0:00:24]}  Kf5 {[%clk 0:00:14]} 74. Bf6 {[%clk 0:00:25]}  Kg6 {[%clk 0:00:14]} 75. Be5 {[%clk 0:00:25]}  Be6 {[%clk 0:00:15]} 76. Bc3 {[%clk 0:00:26]}  Bf7 {[%clk 0:00:16]} 77. Bd4 {[%clk 0:00:26]}  Be6 {[%clk 0:00:16]} 78. Bc3 {[%clk 0:00:27]}  Bf7 {[%clk 0:00:17]} 79. Bd4 {[%clk 0:00:28]}  Be6 {[%clk 0:00:18]} 80. Bc3 {[%clk 0:00:29]} 1/2-1/2

[Event "November 21 Late 2023"]
[Site "https://www.chess.com"]
[Date "2023.11.21"]
[Round "2"]
[White "Ferreira, Vitor Hugo Vieira"]
[Black "Gokerkan, Cem Kaan"]
[Result "0-1"]
[Board "39"]
[TimeControl "180+1"]
[WhiteFideId "2119765"]
[BlackFideId "6336760"]
[WhiteElo "2123"]
[BlackElo "2365"]
[WhiteTeam "BRA"]
[BlackTeam "TUR"]
[WhiteClock "0:01:41"]
[BlackClock "0:01:16"]

1. d4 {[%clk 0:03:00]}  Nf6 {[%clk 0:02:59]} 2. c4 {[%clk 0:02:59]}  e6 {[%clk 0:03:00]} 3. Nf3 {[%clk 0:02:59]}  b6 {[%clk 0:02:59]} 4. g3 {[%clk 0:02:59]}  Ba6 {[%clk 0:02:59]} 5. b3 {[%clk 0:02:59]}  b5 {[%clk 0:02:58]} 6. cxb5 {[%clk 0:02:56]}  Bxb5 {[%clk 0:02:59]} 7. Nc3 {[%clk 0:02:56]}  Ba6 {[%clk 0:02:58]} 8. Bg2 {[%clk 0:02:56]}  d5 {[%clk 0:02:58]} 9. O-O {[%clk 0:02:56]}  Nbd7 {[%clk 0:02:48]} 10. Re1 {[%clk 0:02:56]}  Bb4 {[%clk 0:02:36]} 11. Bd2 {[%clk 0:02:54]}  O-O {[%clk 0:02:36]} 12. Rc1 {[%clk 0:02:51]}  c5 {[%clk 0:02:35]} 13. Na4 {[%clk 0:02:50]}  Ba3 {[%clk 0:02:30]} 14. Rc2 {[%clk 0:02:49]}  cxd4 {[%clk 0:02:21]} 15. Nxd4 {[%clk 0:02:46]}  Rc8 {[%clk 0:02:14]} 16. Nc6 {[%clk 0:02:45]}  Qe8 {[%clk 0:02:14]} 17. Nb4 {[%clk 0:02:41]}  Bb7 {[%clk 0:02:07]} 18. Rxc8 {[%clk 0:02:30]}  Qxc8 {[%clk 0:02:07]} 19. Nc2 {[%clk 0:02:25]}  Be7 {[%clk 0:02:02]} 20. Qb1 {[%clk 0:02:25]}  Bc6 {[%clk 0:01:53]} 21. Rc1 {[%clk 0:02:18]}  Qa6 {[%clk 0:01:47]} 22. Nb4 {[%clk 0:02:15]}  Bxb4 {[%clk 0:01:46]} 23. Bxb4 {[%clk 0:02:16]}  Rb8 {[%clk 0:01:45]} 24. Bd6 {[%clk 0:02:14]}  Re8 {[%clk 0:01:34]} 25. e3 {[%clk 0:02:09]}  Bxa4 {[%clk 0:01:34]} 26. bxa4 {[%clk 0:02:09]}  Qxd6 {[%clk 0:01:34]} 27. Qb7 {[%clk 0:02:04]}  Qb6 {[%clk 0:01:31]} 28. Rc7 {[%clk 0:02:02]}  Qxb7 {[%clk 0:01:28]} 29. Rxb7 {[%clk 0:02:02]}  Ra8 {[%clk 0:01:25]} 30. Bf1 {[%clk 0:01:51]}  Nc5 {[%clk 0:01:22]} 31. Rc7 {[%clk 0:01:45]}  Nxa4 {[%clk 0:01:20]} 32. Bb5 {[%clk 0:01:44]}  Nb6 {[%clk 0:01:20]} 33. a4 {[%clk 0:01:44]}  a6 {[%clk 0:01:15]} 34. Bc6 {[%clk 0:01:43]}  Rc8 {[%clk 0:01:14]} 35. Rxc8+ {[%clk 0:01:42]}  Nxc8 {[%clk 0:01:15]} 36. Bb7 {[%clk 0:01:42]}  Nb6 {[%clk 0:01:15]} 37. a5 {[%clk 0:01:42]}  Nc4 {[%clk 0:01:16]} 38. Bxa6 {[%clk 0:01:43]}  Nxa5 {[%clk 0:01:17]} 39. Bd3 {[%clk 0:01:41]}  g6 {[%clk 0:01:16]} 0-1

[Event "November 21 Late 2023"]
[Site "https://www.chess.com"]
[Date "2023.11.21"]
[Round "2"]
[White "Beerdsen, Thomas"]
[Black "Elgersma, Onno"]
[Result "1-0"]
[Board "42"]
[TimeControl "180+1"]
[WhiteFideId "1030108"]
[BlackFideId "1053531"]
[WhiteElo "2550"]
[BlackElo "2251"]
[WhiteTeam "NED"]
[BlackTeam "NED"]
[WhiteClock "0:01:35"]
[BlackClock "0:00:00"]

1. e4 {[%clk 0:03:00]}  g6 {[%clk 0:02:55]} 2. d4 {[%clk 0:02:59]}  d6 {[%clk 0:02:54]} 3. Nc3 {[%clk 0:03:00]}  Bg7 {[%clk 0:02:54]} 4. Bg5 {[%clk 0:03:00]}  Nc6 {[%clk 0:02:53]} 5. Nf3 {[%clk 0:02:59]}  Bg4 {[%clk 0:02:50]} 6. d5 {[%clk 0:03:00]}  Bxf3 {[%clk 0:02:47]} 7. gxf3 {[%clk 0:03:00]}  Nb8 {[%clk 0:02:46]} 8. Qd2 {[%clk 0:02:58]}  h6 {[%clk 0:02:45]} 9. Be3 {[%clk 0:02:58]}  Nf6 {[%clk 0:02:44]} 10. O-O-O {[%clk 0:02:58]}  c6 {[%clk 0:02:44]} 11. dxc6 {[%clk 0:02:53]}  Nxc6 {[%clk 0:02:45]} 12. Kb1 {[%clk 0:02:52]}  Rc8 {[%clk 0:02:45]} 13. f4 {[%clk 0:02:47]}  Qa5 {[%clk 0:02:41]} 14. f3 {[%clk 0:02:37]}  O-O {[%clk 0:02:18]} 15. f5 {[%clk 0:02:35]}  Ne5 {[%clk 0:01:59]} 16. Be2 {[%clk 0:02:31]}  h5 {[%clk 0:01:42]} 17. Rhg1 {[%clk 0:02:26]}  Qb4 {[%clk 0:01:18]} 18. a3 {[%clk 0:02:23]}  Qa5 {[%clk 0:01:11]} 19. Nd5 {[%clk 0:02:04]}  Qd8 {[%clk 0:01:04]} 20. Nxf6+ {[%clk 0:01:55]}  Bxf6 {[%clk 0:01:03]} 21. f4 {[%clk 0:01:55]}  Ng4 {[%clk 0:00:44]} 22. Bxg4 {[%clk 0:01:53]}  hxg4 {[%clk 0:00:45]} 23. Rxg4 {[%clk 0:01:49]}  Rc4 {[%clk 0:00:23]} 24. fxg6 {[%clk 0:01:48]}  Rxe4 {[%clk 0:00:20]} 25. gxf7+ {[%clk 0:01:48]}  Kh7 {[%clk 0:00:21]} 26. Qd3 {[%clk 0:01:42]}  d5 {[%clk 0:00:18]} 27. Bd4 {[%clk 0:01:43]}  Bh4 {[%clk 0:00:02]} 28. Rxh4+ {[%clk 0:01:39]}  Kg6 {[%clk 0:00:01]} 29. f5+ {[%clk 0:01:36]}  Kxf5 {[%clk 0:00:01]} 30. Rf1+ {[%clk 0:01:35]}  Ke6 {[%clk 0:00:01]} 31. Rxe4+ {[%clk 0:01:35]}  dxe4 {[%clk 0:00:02]} 32. Qxe4+ {[%clk 0:01:36]}  Kd7 {[%clk 0:00:03]} 33. Qxb7+ {[%clk 0:01:37]}  Qc7 {[%clk 0:00:03]} 34. Qxc7+ {[%clk 0:01:36]}  Kxc7 {[%clk 0:00:04]} 35. Bg7 {[%clk 0:01:36]}  Rg8 {[%clk 0:00:00]} 36. f8=B {[%clk 0:01:35]} 1-0

[Event "November 21 Late 2023"]
[Site "https://www.chess.com"]
[Date "2023.11.21"]
[Round "2"]
[White "Gavrilov, Maxim"]
[Black "Mitrabha, Guha"]
[Result "1-0"]
[Board "43"]
[TimeControl "180+1"]
[WhiteFideId "24271454"]
[BlackFideId "5057000"]
[WhiteElo "2157"]
[BlackElo "2512"]
[WhiteTeam "RUS"]
[BlackTeam "IND"]
[WhiteClock "0:00:19"]
[BlackClock "0:00:50"]

1. d4 {[%clk 0:02:58]}  Nf6 {[%clk 0:02:58]} 2. c4 {[%clk 0:02:58]}  c5 {[%clk 0:02:58]} 3. d5 {[%clk 0:02:58]}  e6 {[%clk 0:02:58]} 4. Nc3 {[%clk 0:02:58]}  exd5 {[%clk 0:02:58]} 5. cxd5 {[%clk 0:02:58]}  d6 {[%clk 0:02:59]} 6. e4 {[%clk 0:02:58]}  a6 {[%clk 0:02:58]} 7. Bd3 {[%clk 0:02:57]}  b5 {[%clk 0:02:58]} 8. h3 {[%clk 0:02:55]}  g6 {[%clk 0:02:57]} 9. Nf3 {[%clk 0:02:55]}  Bg7 {[%clk 0:02:58]} 10. O-O {[%clk 0:02:55]}  O-O {[%clk 0:02:58]} 11. Re1 {[%clk 0:02:54]}  Nbd7 {[%clk 0:02:56]} 12. Bf4 {[%clk 0:02:52]}  Ne8 {[%clk 0:02:56]} 13. Rc1 {[%clk 0:02:50]}  Qe7 {[%clk 0:02:53]} 14. a3 {[%clk 0:02:48]}  Bb7 {[%clk 0:02:51]} 15. Bh2 {[%clk 0:02:47]}  Rc8 {[%clk 0:02:40]} 16. Bb1 {[%clk 0:02:47]}  c4 {[%clk 0:02:36]} 17. Nd4 {[%clk 0:02:41]}  Nc5 {[%clk 0:02:34]} 18. Nc6 {[%clk 0:02:00]}  Bxc6 {[%clk 0:02:22]} 19. dxc6 {[%clk 0:02:01]}  Rxc6 {[%clk 0:02:22]} 20. Nd5 {[%clk 0:02:01]}  Qd8 {[%clk 0:02:22]} 21. Qf3 {[%clk 0:01:54]}  Nc7 {[%clk 0:02:16]} 22. Rcd1 {[%clk 0:01:54]}  N7e6 {[%clk 0:02:12]} 23. e5 {[%clk 0:01:52]}  dxe5 {[%clk 0:02:06]} 24. Nf6+ {[%clk 0:01:20]}  Qxf6 {[%clk 0:02:05]} 25. Qxc6 {[%clk 0:01:21]}  e4 {[%clk 0:02:05]} 26. Bxe4 {[%clk 0:01:17]}  Qxb2 {[%clk 0:02:03]} 27. Bd5 {[%clk 0:01:13]}  Nd3 {[%clk 0:01:58]} 28. Rf1 {[%clk 0:01:05]}  Nd4 {[%clk 0:01:54]} 29. Qxa6 {[%clk 0:01:04]}  Ne2+ {[%clk 0:01:50]} 30. Kh1 {[%clk 0:01:04]}  Nc3 {[%clk 0:01:48]} 31. Bd6 {[%clk 0:00:56]}  Nxd5 {[%clk 0:01:28]} 32. Bxf8 {[%clk 0:00:55]}  Bxf8 {[%clk 0:01:29]} 33. a4 {[%clk 0:00:41]}  Nc3 {[%clk 0:01:26]} 34. Ra1 {[%clk 0:00:34]}  Nxf2+ {[%clk 0:01:23]} 35. Kg1 {[%clk 0:00:34]}  bxa4 {[%clk 0:01:04]} 36. Qxc4 {[%clk 0:00:21]}  Nfe4 {[%clk 0:00:50]} 37. Qxf7+ {[%clk 0:00:19]} 1-0

[Event "November 21 Late 2023"]
[Site "https://www.chess.com"]
[Date "2023.11.21"]
[Round "2"]
[White "Prithu Gupta"]
[Black "Bazeev, German"]
[Result "0-1"]
[Board "44"]
[TimeControl "180+1"]
[WhiteFideId "46618546"]
[BlackFideId "24119350"]
[WhiteElo "2344"]
[BlackElo "2418"]
[WhiteTeam "IND"]
[BlackTeam "RUS"]
[WhiteClock "0:00:00"]
[BlackClock "0:01:13"]

1. d4 {[%clk 0:03:00]}  Nf6 {[%clk 0:02:52]} 2. c4 {[%clk 0:02:56]}  e6 {[%clk 0:02:53]} 3. Nf3 {[%clk 0:02:49]}  b6 {[%clk 0:02:53]} 4. Nc3 {[%clk 0:02:47]}  Bb4 {[%clk 0:02:52]} 5. Bd2 {[%clk 0:02:46]}  Bb7 {[%clk 0:02:52]} 6. e3 {[%clk 0:02:43]}  O-O {[%clk 0:02:53]} 7. Bd3 {[%clk 0:02:41]}  h6 {[%clk 0:02:53]} 8. Qc2 {[%clk 0:02:40]}  d6 {[%clk 0:02:32]} 9. O-O-O {[%clk 0:02:38]}  a5 {[%clk 0:02:22]} 10. e4 {[%clk 0:02:15]}  Bxc3 {[%clk 0:02:05]} 11. Bxc3 {[%clk 0:02:14]}  d5 {[%clk 0:02:05]} 12. cxd5 {[%clk 0:02:08]}  exd5 {[%clk 0:02:06]} 13. e5 {[%clk 0:02:07]}  Ne4 {[%clk 0:02:06]} 14. g4 {[%clk 0:01:53]}  Na6 {[%clk 0:02:03]} 15. Kb1 {[%clk 0:01:32]}  Nb4 {[%clk 0:02:01]} 16. Bxb4 {[%clk 0:01:32]}  axb4 {[%clk 0:02:02]} 17. h4 {[%clk 0:01:25]}  Qb8 {[%clk 0:02:02]} 18. g5 {[%clk 0:00:47]}  Qa7 {[%clk 0:02:02]} 19. Qb3 {[%clk 0:00:46]}  h5 {[%clk 0:01:56]} 20. Rhf1 {[%clk 0:00:15]}  c5 {[%clk 0:01:54]} 21. Bxe4 {[%clk 0:00:07]}  c4 {[%clk 0:01:53]} 22. Qxb4 {[%clk 0:00:06]}  Qxa2+ {[%clk 0:01:53]} 23. Kc2 {[%clk 0:00:06]}  dxe4 {[%clk 0:01:47]} 24. Nd2 {[%clk 0:00:06]}  c3 {[%clk 0:01:35]} 25. Ra1 {[%clk 0:00:05]}  Qe6 {[%clk 0:01:27]} 26. bxc3 {[%clk 0:00:05]}  Qf5 {[%clk 0:01:25]} 27. Nc4 {[%clk 0:00:02]}  e3+ {[%clk 0:01:25]} 28. Kb3 {[%clk 0:00:02]}  Rxa1 {[%clk 0:01:21]} 29. Rxa1 {[%clk 0:00:03]}  exf2 {[%clk 0:01:21]} 30. Nd6 {[%clk 0:00:03]}  Qe6+ {[%clk 0:01:18]} 31. c4 {[%clk 0:00:02]}  Bg2 {[%clk 0:01:17]} 32. d5 {[%clk 0:00:02]}  Qxe5 {[%clk 0:01:16]} 33. g6 {[%clk 0:00:02]}  fxg6 {[%clk 0:01:15]} 34. Ra7 {[%clk 0:00:00]}  f1=Q {[%clk 0:01:13]} 0-1